[Event "Spring Chess Classic B 2024"]
[Site "Saint Louis"]
[Date "2024.04.14"]
[Round "3.4"]
[White "Chandra, Akshat"]
[Black "Kantor, Gergely"]
[Result "1-0"]
[ECO "C54"]
[WhiteElo "2489"]
[BlackElo "2527"]
[Annotator "TA"]
[PlyCount "169"]
[EventDate "2024.04.11"]
[EventCountry "USA"]
[SourceTitle "playchess.com"]
[Source "ChessBase"]
[SourceQuality "1"]
[TimeControl "7200+30"]

{[%evp 79,169,503,755,758,760,765,724,568,705,577,542,535,797,732,676,0,845,829,834,820,753,345,493,453,409,400,423,424,418,327,550,484,516,475,551,397,647,481,485,450,480,489,492,497,488,482,466,439,448,427,450,460,482,482,482,482,482,400,428,435,434,423,584,578,653,621,716,710,834,765,7716,6185,1751,1052,29986,29987,29990,29991,29992,29993,29993,29994,29997,29993,29993,29990,29990,29991,29990,29991,29998,29999]} 1. e4 {[%emt 0:00:03]} e5 {[%emt 0:00:09]} 2. Nf3 {[%emt 0:00:05]} Nc6 {[%emt 0:00:04]} 3. Bc4 {[%emt 0:00:05]} Nf6 {[%emt 0:00:17]} 4. d3 {[%emt 0:00:09]} Bc5 {[%emt 0:00:09]} 5. Bg5 {[%emt 0:00:12]} h6 {[%emt 0:07:03]} 6. Bh4 {[%emt 0:00:05]} d6 {[%emt 0:00:40]} 7. c3 $1 {[%emt 0:00:09][%mdl 4] is recently more successful than 7.h3.} a5 {[%emt 0:01:05] C54: Giuoco Piano: 4 c3 Nf6, main lines with 5 d4 and 5 d3.} 8. Nbd2 {[%emt 0:00:20]} Ba7 {[%emt 0:01:06]} 9. a4 {[%emt 0:02:51]} Qe7 {[%emt 0:04:02]} 10. O-O {[%emt 0:00:47]} g5 {[%emt 0:13:15]} 11. Bg3 {[%emt 0:00:19]} O-O $146 {[%emt 0:00:50]} ({Predecessor:} 11... Nd7 12. Bb5 h5 13. h4 g4 14. Ne1 Nf8 15. d4 Ng6 16. dxe5 dxe5 17. Nc4 O-O {½-½ Ottesen,S (2364)-Muljadi,P (2357) DEN-USA email 2018 [5]}) 12. Re1 {[%emt 0:04:42]} g4 {[%emt 0:32:15]} 13. Bh4 {[%emt 0:43:51]} Nd8 {[%emt 0:03:52]} 14. Nd4 {[%emt 0:10:03]} c6 {[%emt 0:22:33]} 15. Nf5 {[%emt 0:04:36]} Bxf5 {[%emt 0:00:13]} 16. exf5 {[%emt 0:00:05]} d5 {[%emt 0:00:09]} 17. d4 {[%emt 0:00:37]} e4 {[%emt 0:01:27]} 18. Be2 {[%emt 0:00:51]} h5 {[%emt 0:03:30]} 19. Nf1 {[%emt 0:01:18]} Qd6 {[%emt 0:01:00]} 20. Qd2 {[%emt 0:03:00]} Nh7 {[%emt 0:02:00]} 21. Ng3 {[%emt 0:05:41]} Bb8 {[%emt 0:03:43]} 22. f3 {[%emt 0:00:21]} gxf3 {[%emt 0:02:37]} 23. gxf3 {[%emt 0:00:15]} Re8 {[%emt 0:02:12]} 24. Bd3 {[%emt 0:08:43]} Qf4 {[%emt 0:03:57]} 25. Qxf4 {[%emt 0:03:50]} Bxf4 {[%emt 0:00:02]} 26. fxe4 {[%emt 0:00:13]} Bg5 {[%emt 0:00:19]} 27. Bxg5 {[%emt 0:07:03]} Nxg5 {[%emt 0:00:03]} 28. Kg2 {[%emt 0:04:19]} dxe4 {[%emt 0:01:11]} 29. h4 {[%emt 0:05:15]} Nh7 {[%emt 0:03:37]} 30. Nxe4 {[%emt 0:00:12]} Kf8 {[%emt 0:02:22]} 31. Kf3 {[%emt 0:01:26]} b6 {[%emt 0:01:56]} 32. Rg1 {[%emt 0:06:49]} Nb7 {[%emt 0:01:25]} 33. Rg2 {[%emt 0:03:20]} Rad8 {[%emt 0:00:58]} 34. Rag1 {[%emt 0:06:06]} Ke7 {[%emt 0:01:04]} 35. Rg7 {[%emt 0:00:36]} Nf6 {[%emt 0:00:15]} 36. Bc4 {[%emt 0:01:11]} Rf8 {[%emt 0:05:56]} 37. Ng5 {[%emt 0:00:04]} Nd6 {[%emt 0:04:16]} 38. Re1+ {[%emt 0:00:06]} Kd7 {[%emt 0:00:04]} 39. Bxf7 {[%emt 0:04:33]} Kc8 {[%emt 0:00:10]} 40. Bg6 {[%emt 0:02:33]} Nfe8 {[%emt 0:00:23]} (40... Rd7 $142) 41. Ra7 $18 {[%emt 0:02:10]} Kb8 {[%emt 0:02:11]} 42. Ree7 {[%emt 0:00:15]} Nxf5 {[%emt 0:00:24]} 43. Reb7+ {[%emt 0:00:45]} Kc8 {[%emt 0:00:01]} 44. Bxf5+ {[%emt 0:00:17]} Rxf5+ {[%emt 0:00:02]} 45. Ke2 {[%emt 0:00:03]} Rd6 {[%emt 0:03:47]} 46. Re7 {[%emt 0:01:01]} Kb8 {[%emt 0:00:40]} 47. Reb7+ {[%emt 0:00:42]} (47. Rxe8+ Kxa7 48. Re7+ Kb8 $17) 47... Kc8 {[%emt 0:00:03]} 48. Rh7 {[%emt 0:00:08]} Kb8 {[%emt 0:00:38]} 49. Rae7 {[%emt 0:00:10]} Rf8 {[%emt 0:00:34]} 50. Rxh5 {[%emt 0:02:35]} (50. Nf7 $142) 50... Rdf6 {[%emt 0:01:55]} (50... Nf6 $142) 51. Kd3 {[%emt 0:00:32]} Nd6 {[%emt 0:00:20]} 52. Rhh7 {[%emt 0:00:18]} c5 {[%emt 0:00:29]} 53. dxc5 {[%emt 0:00:43]} bxc5 {[%emt 0:00:01]} 54. Re6 {[%emt 0:00:17]} c4+ $2 {[%emt 0:00:17]} (54... Rxe6 55. Nxe6 Rf2) 55. Kd4 $18 {[%emt 0:00:14]} Rf4+ {[%emt 0:00:27]} 56. Kc5 {[%emt 0:00:45]} Nc8 {[%emt 0:00:23]} 57. Re5 {[%emt 0:00:27]} Na7 $2 {[%emt 0:01:04]} (57... Rf2 58. Ne4 (58. Kxc4 Rxb2 59. Rb5+ Rxb5 $18) 58... Rxb2) 58. Re4 {[%emt 0:00:44]} Rc8+ {[%emt 0:00:27]} 59. Kd5 Rf5+ 60. Re5 Rf2 61. Ree7 (61. h5 Rd2+ 62. Ke4 Re2+ 63. Kf5 Rxb2 64. Rxa5 Rf2+ 65. Kg4 Nc6 $18) 61... Rd2+ 62. Ke4 Nc6 63. Rb7+ Ka8 64. Rbc7 Re8+ 65. Kf4 Ne5 66. Ra7+ Kb8 67. Rhb7+ (67. Rxa5 Re2 $16) 67... Kc8 {[#]} 68. Ra8+ $1 ({Less strong is} 68. Rc7+ Kb8 $16) 68... Kxb7 69. Rxe8 Nd3+ 70. Kg3 Nxb2 71. h5 Rd6 72. Re7+ Kc8 73. Nf7 Rd3+ 74. Kg4 Nd1 75. h6 Nf2+ 76. Kf5 Rf3+ 77. Ke6 Re3+ 78. Kd6 Rh3 79. Kc6 Kb8 80. Kb6 Kc8 81. h7 Rxh7 82. Nd6+ Kd8 83. Rxh7 Ng4 84. Ra7 Nf6 85. Kc6 1-0

[Event "Spring Chess Classic B 2024"]
[Site "Saint Louis"]
[Date "2024.04.14"]
[Round "3.5"]
[White "Van Foreest, Lucas"]
[Black "Stearman, Josiah"]
[Result "0-1"]
[ECO "D00"]
[WhiteElo "2512"]
[BlackElo "2462"]
[Annotator "RC"]
[PlyCount "160"]
[EventDate "2024.04.11"]
[EventCountry "USA"]
[SourceTitle "playchess.com"]
[Source "ChessBase"]
[SourceQuality "1"]
[TimeControl "7200+30"]

1. d4 {[%emt 0:00:21]} d5 {[%emt 0:00:21]} 2. Nc3 {[%emt 0:00:13]} Nf6 {[%emt 0:01:04]} 3. Bf4 {[%emt 0:00:17]} e6 {[%emt 0:00:34]} 4. Nb5 {[%emt 0:01:00]} Na6 {[%emt 0:00:26]} 5. e3 {[%emt 0:00:09]} c6 {[%emt 0:01:45]} 6. Nc3 {[%emt 0:00:25]} Qb6 {[%emt 0:05:52]} 7. Rb1 {[%emt 0:01:17]} c5 {[%emt 0:05:42]} 8. Nf3 {[%emt 0:01:01]} Bd7 {[%emt 0:00:33]} 9. Ne5 {[%emt 0:02:13]} Nb4 {[%emt 0:08:59]} 10. Be2 {[%emt 0:15:24]} cxd4 {[%emt 0:02:48]} 11. O-O {[%emt 0:04:59]} dxe3 {[%emt 0:06:04]} 12. Bxe3 {[%emt 0:00:53]} Qc7 {[%emt 0:00:37]} 13. Bd4 {[%emt 0:08:53]} Be7 {[%emt 0:03:00]} 14. Nb5 {[%emt 0:17:30]} Bxb5 {[%emt 0:01:21]} 15. Bxb5+ {[%emt 0:00:44]} Nc6 {[%emt 0:00:08]} 16. Ng4 {[%emt 0:00:37]} Qd8 {[%emt 0:10:22]} 17. c4 {[%emt 0:02:53]} dxc4 {[%emt 0:04:37]} 18. Nxf6+ {[%emt 0:15:57]} Bxf6 {[%emt 0:01:30]} 19. Bxf6 {[%emt 0:00:12]} Qxf6 {[%emt 0:02:27]} 20. Qd6 {[%emt 0:03:02]} Rc8 {[%emt 0:00:17]} 21. Rfd1 {[%emt 0:03:10]} Qe7 {[%emt 0:01:18]} 22. Bxc6+ {[%emt 0:00:36]} bxc6 {[%emt 0:00:09]} 23. Qd4 {[%emt 0:00:27]} O-O {[%emt 0:00:12]} 24. Qxc4 {[%emt 0:00:09]} Rfd8 {[%emt 0:02:31]} 25. Rbc1 {[%emt 0:00:59]} Rxd1+ {[%emt 0:03:02]} 26. Rxd1 {[%emt 0:00:17]} Rd8 {[%emt 0:00:14]} 27. Rc1 {[%emt 0:00:10]} Qb7 {[%emt 0:03:09]} 28. b4 {[%emt 0:00:55]} g6 {[%emt 0:06:47]} 29. h3 {[%emt 0:01:27]} Rd6 {[%emt 0:02:29]} 30. Qc5 {[%emt 0:07:05]} Qd7 {[%emt 0:01:54]} 31. Kh2 {[%emt 0:00:30]} h5 {[%emt 0:01:14]} 32. Rc3 {[%emt 0:09:34]} Rd2 {[%emt 0:04:22]} 33. Qxc6 {[%emt 0:00:05]} Qxc6 {[%emt 0:00:29]} 34. Rxc6 {[%emt 0:00:10]} Rxa2 {[%emt 0:00:31]} 35. f3 {[%emt 0:00:06]} Kg7 {[%emt 0:03:41]} 36. b5 {[%emt 0:00:09]} Rb2 {[%emt 0:00:55]} 37. Ra6 {[%emt 0:00:08]} Rxb5 {[%emt 0:00:06]} 38. Rxa7 {[%emt 0:00:10]} Rb4 {[%emt 0:01:37]} 39. Kg1 {[%emt 0:00:11]} h4 {[%emt 0:00:58]} 40. Kf2 {[%emt 0:00:05]} Rb2+ {[%emt 0:00:07]} 41. Kg1 {[%emt 0:00:11]} Kf6 {[%emt 0:00:58]} 42. Ra4 {[%emt 0:00:06]} Kg5 {[%emt 0:00:21]} 43. Rg4+ {[%emt 0:00:38]} Kh5 {[%emt 0:00:08]} 44. Re4 {[%emt 0:00:14]} Rb6 {[%emt 0:01:06]} 45. Ra4 {[%emt 0:01:19]} f5 {[%emt 0:00:10]} 46. Kf2 {[%emt 0:00:39]} Kg5 {[%emt 0:00:08]} 47. Rc4 {[%emt 0:00:49]} e5 {[%emt 0:00:29]} 48. Ra4 {[%emt 0:00:00]} Rb2+ {[%emt 0:00:13]} 49. Kg1 {[%emt 0:00:56]} Rd2 {[%emt 0:00:00]} 50. Rb4 {[%emt 0:20:36]} Rd4 {[%emt 0:00:33]} 51. Rb6 {[%emt 0:01:12]} e4 {[%emt 0:02:08]} 52. fxe4 {[%emt 0:00:18]} fxe4 {[%emt 0:00:14]} 53. Kf2 {[%emt 0:04:45]} Rd2+ {[%emt 0:00:17]} 54. Kg1 {[%emt 0:00:44]} Kf5 {[%emt 0:00:49]} 55. Kf1 {[%emt 0:01:10]} g5 {[%emt 0:00:06]} 56. Rb3 {[%emt 0:01:28]} Kf4 {[%emt 0:00:11]} 57. Ra3 {[%emt 0:00:15]} Rd3 {[%emt 0:00:13]} 58. Ra5 {[%emt 0:00:54]} Ke3 {[%emt 0:00:43]} 59. Ra1 {[%emt 0:01:42]} Rb3 {[%emt 0:00:21]} 60. Ke1 {[%emt 0:01:03]} Rc3 {[%emt 0:00:52]} 61. Kf1 {[%emt 0:00:40]} Kd2 {[%emt 0:00:46]} 62. Ra2+ {[%emt 0:02:36]} Kd3 {[%emt 0:00:02]} 63. Kf2 {[%emt 0:00:30]} Rb3 {[%emt 0:00:34]} 64. Re2 {[%emt 0:00:14]} Rb5 {[%emt 0:02:18]} 65. Re3+ {[%emt 0:00:02]} Kd4 {[%emt 0:00:06]} 66. Ra3 {[%emt 0:00:46]} Rb2+ {[%emt 0:00:38]} 67. Kf1 {[%emt 0:00:06]} e3 {[%emt 0:00:26]} 68. Ra8 {[%emt 0:02:30]} Rf2+ {[%emt 0:02:18]} 69. Kg1 {[%emt 0:00:01]} Rc2 {[%emt 0:02:48]} 70. Kf1 {[%emt 0:00:10]} Kd3 {[%emt 0:00:15]} 71. Rd8+ {[%emt 0:00:35]} Ke4 {[%emt 0:00:01]} 72. Rf8 {[%emt 0:00:57]} Rc1+ {[%emt 0:00:37]} 73. Ke2 {[%emt 0:00:13]} Rg1 {[%emt 0:00:28]} 74. g4 {[%emt 0:03:40]} Rg2+ {[%emt 0:01:07]} 75. Ke1 {[%emt 0:00:05]} Rg3 {[%emt 0:00:26]} 76. Rf5 {[%emt 0:00:26]} Rxh3 {[%emt 0:00:15]} 77. Rxg5 {[%emt 0:00:03]} Rh1+ {[%emt 0:00:33]} 78. Ke2 {[%emt 0:00:02]} h3 {[%emt 0:00:28]} 79. Rh5 {[%emt 0:02:04]} h2 {[%emt 0:00:05]} 80. g5 {[%emt 0:00:28]} Ra1 {[%emt 0:00:38]} 0-1

[Event "Spring Chess Classic B 2024"]
[Site "Saint Louis"]
[Date "2024.04.15"]
[Round "4.1"]
[White "Raja Harshit"]
[Black "Stearman, Josiah"]
[Result "1-0"]
[ECO "D27"]
[WhiteElo "2458"]
[BlackElo "2462"]
[Annotator "ChessBase"]
[PlyCount "31"]
[EventDate "2024.04.11"]
[EventCountry "USA"]
[SourceTitle "playchess.com"]
[Source "ChessBase"]
[SourceQuality "1"]
[TimeControl "7200+30"]

1. d4 {[%emt 0:00:22]} d5 {[%emt 0:00:30]} 2. Nf3 {[%emt 0:00:37]} Nf6 {[%emt 0:00:26]} 3. c4 {[%emt 0:00:09]} dxc4 {[%emt 0:00:21]} 4. e3 {[%emt 0:00:49]} e6 {[%emt 0:00:25]} 5. Bxc4 {[%emt 0:00:07]} a6 {[%emt 0:00:03]} 6. O-O {[%emt 0:04:21]} c5 {[%emt 0:00:17]} 7. e4 {[%emt 0:01:20]} b5 {[%emt 0:08:07]} 8. Bd3 {[%emt 0:00:55]} Bb7 {[%emt 0:06:34]} 9. Qe2 {[%emt 0:00:47]} cxd4 {[%emt 0:05:04]} 10. a4 {[%emt 0:00:16]} Nbd7 {[%emt 0:04:27]} 11. axb5 {[%emt 0:16:51]} axb5 {[%emt 0:01:30]} 12. Rxa8 {[%emt 0:00:27]} Qxa8 {[%emt 0:06:51]} 13. e5 {[%emt 0:12:06]} Nd5 {[%emt 0:02:17]} 14. Bxb5 {[%emt 0:05:10]} N5b6 {[%emt 0:00:32]} 15. Nxd4 {[%emt 0:13:21]} Bxg2 {[%emt 0:03:32]} 16. Rd1 {[%emt 0:00:14]} 1-0

[Event "Spring Chess Classic B 2024"]
[Site "Saint Louis"]
[Date "2024.04.15"]
[Round "4.2"]
[White "Kantor, Gergely"]
[Black "Van Foreest, Lucas"]
[Result "1/2-1/2"]
[ECO "D41"]
[WhiteElo "2527"]
[BlackElo "2512"]
[Annotator "TA"]
[PlyCount "50"]
[EventDate "2024.04.11"]
[EventCountry "USA"]
[SourceTitle "playchess.com"]
[Source "ChessBase"]
[SourceQuality "1"]
[TimeControl "7200+30"]

{[%evp 13,50,29,12,33,42,27,45,33,45,39,37,52,39,41,52,47,53,58,57,48,64,56,60,50,58,40,62,66,60,56,71,25,34,21,25,22,35,25,40]} 1. d4 {[%emt 0:00:04]} d5 {[%emt 0:00:13]} 2. c4 {[%emt 0:00:06]} e6 {[%emt 0:00:07]} 3. Nf3 {[%emt 0:01:24]} Nf6 {[%emt 0:00:33]} 4. Nc3 {[%emt 0:01:44]} c5 {[%emt 0:00:41]} 5. cxd5 {[%emt 0:00:24]} cxd4 {[%emt 0:00:08]} 6. Qxd4 {[%emt 0:00:05]} exd5 {[%emt 0:00:05]} 7. e4 {[%emt 0:00:39]} Nc6 {[%emt 0:00:06]} 8. Bb5 {[%emt 0:01:41]} dxe4 {[%emt 0:00:14]} 9. Qxd8+ {[%emt 0:01:46]} Kxd8 {[%emt 0:00:41]} 10. Ng5 {[%emt 0:02:17][%csl LRe4,LRf7] White is slightly better.} Ke8 {[%emt 0:00:09]} 11. O-O {[%emt 0:08:08][%cal Ob5c4]} Bf5 {[%emt 0:00:55]} 12. Re1 {[%emt 0:05:29]} Bb4 {[%emt 0:00:25]} 13. Bd2 {[%emt 0:03:10]} h6 {[%emt 0:01:01]} 14. Ngxe4 {[%emt 0:05:41]} Nxe4 {[%emt 0:00:16]} 15. Nxe4 {[%emt 0:01:55][%cal Bc3e4,Be4d2,Bd2b3][%mdl 32]} Bxd2 {[%emt 0:00:17]} 16. Nxd2+ {[%emt 0:02:24]} Be6 {[%emt 0:00:09]} 17. Nb3 {[%emt 0:11:19] White is more active.} Ke7 {[%emt 0:15:50]} 18. Bxc6 {[%emt 0:03:58]} bxc6 {[%emt 0:00:08]} 19. Nd4 {[%emt 0:00:39][%cal Oa1c1]} Rac8 {[%emt 0:00:39]} 20. Rac1 {[%emt 0:05:26]} c5 {[%emt 0:00:29]} 21. Nxe6 {[%emt 0:02:04]} fxe6 {[%emt 0:00:16]} 22. Rc2 {[%emt 0:13:14]} ({White should play} 22. Re4 $16) 22... Rhd8 $11 {[%emt 0:00:54]} 23. Kf1 {[%emt 0:00:51]} Rd4 {[%emt 0:00:43]} 24. Re3 {[%emt 0:02:50]} Rc6 {[%emt 0:00:37]} 25. Ke2 {[%emt 0:01:06]} Kd6 {[%emt 0:01:09] Weighted Error Value: White=0.05 (flawless) /Black=0.04 (flawless) .  Mistake:       	White=1     	---        OK:         	White=8     	Black=6      Best:        	White=1     	---} 1/2-1/2

[Event "Spring Chess Classic B 2024"]
[Site "Saint Louis"]
[Date "2024.04.15"]
[Round "4.3"]
[White "Woodward, Andy"]
[Black "Chandra, Akshat"]
[Result "1-0"]
[ECO "E11"]
[WhiteElo "2515"]
[BlackElo "2489"]
[Annotator "ChessBase"]
[PlyCount "21"]
[EventDate "2024.04.11"]
[EventCountry "USA"]
[SourceTitle "playchess.com"]
[Source "ChessBase"]
[SourceQuality "1"]
[TimeControl "7200+30"]

1. d4 {[%emt 0:00:07]} Nf6 {[%emt 0:00:04]} 2. c4 {[%emt 0:00:15]} e6 {[%emt 0:00:04]} 3. g3 {[%emt 0:00:10]} d5 {[%emt 0:00:16]} 4. Bg2 {[%emt 0:00:14]} Bb4+ {[%emt 0:00:08]} 5. Bd2 {[%emt 0:00:14]} a5 {[%emt 0:00:12]} 6. Nf3 {[%emt 0:00:44]} O-O {[%emt 0:00:19]} 7. Qb3 {[%emt 0:01:39]} Be7 {[%emt 0:01:47]} 8. Nc3 {[%emt 0:01:07]} c6 {[%emt 0:27:06]} 9. O-O {[%emt 0:00:59]} Nbd7 {[%emt 0:08:22]} 10. Rfd1 {[%emt 0:10:08]} Nb6 {[%emt 0:17:58]} 11. Ne5 {[%emt 0:14:28]} 1-0

[Event "Spring Chess Classic B 2024"]
[Site "Saint Louis"]
[Date "2024.04.15"]
[Round "4.4"]
[White "Batsuren, Dambasuren"]
[Black "Budisavljevic, Luka"]
[Result "1-0"]
[ECO "E48"]
[WhiteElo "2515"]
[BlackElo "2483"]
[Annotator "ChessBase"]
[PlyCount "34"]
[EventDate "2024.04.11"]
[EventCountry "USA"]
[SourceTitle "playchess.com"]
[Source "ChessBase"]
[SourceQuality "1"]
[TimeControl "7200+30"]

1. d4 {[%emt 0:00:03]} e6 {[%emt 0:00:21]} 2. c4 {[%emt 0:00:10]} Nf6 {[%emt 0:00:09]} 3. Nc3 {[%emt 0:00:10]} Bb4 {[%emt 0:00:12]} 4. e3 {[%emt 0:00:13]} O-O {[%emt 0:00:14]} 5. Bd3 {[%emt 0:00:11]} d5 {[%emt 0:00:13]} 6. cxd5 {[%emt 0:01:05]} exd5 {[%emt 0:00:08]} 7. a3 {[%emt 0:00:05]} Bd6 {[%emt 0:00:59]} 8. Qc2 {[%emt 0:00:08]} a6 {[%emt 0:11:52]} 9. Nge2 {[%emt 0:00:58]} b6 {[%emt 0:02:37]} 10. e4 {[%emt 0:11:19]} dxe4 {[%emt 0:04:46]} 11. Nxe4 {[%emt 0:00:13]} h6 {[%emt 0:03:49]} 12. Nxd6 {[%emt 0:01:03]} cxd6 {[%emt 0:01:35]} 13. O-O {[%emt 0:00:41]} Bb7 {[%emt 0:01:50]} 14. Ng3 {[%emt 0:17:04]} Nc6 {[%emt 0:04:41]} 15. Bxh6 {[%emt 0:18:37]} gxh6 {[%emt 0:01:55]} 16. Qd2 {[%emt 0:02:41]} Nh7 {[%emt 0:02:30]} 17. Qxh6 {[%emt 0:05:21]} f5 {[%emt 0:00:44]} 1-0

[Event "Spring Chess Classic B 2024"]
[Site "Saint Louis"]
[Date "2024.04.14"]
[Round "4.5"]
[White "Ali Marandi, Cemil Can"]
[Black "Kevlishvili, Robby"]
[Result "1/2-1/2"]
[ECO "A28"]
[WhiteElo "2516"]
[BlackElo "2524"]
[Annotator "RC"]
[PlyCount "68"]
[EventDate "2024.04.11"]
[EventCountry "USA"]
[SourceTitle "playchess.com"]
[Source "ChessBase"]
[SourceQuality "1"]
[TimeControl "7200+30"]

1. c4 {[%emt 0:00:04]} e5 {[%emt 0:01:03]} 2. Nf3 {[%emt 0:00:18]} Nc6 {[%emt 0:00:13]} 3. Nc3 {[%emt 0:00:09]} Nf6 {[%emt 0:00:07]} 4. e3 {[%emt 0:00:25]} Bb4 {[%emt 0:00:38]} 5. Qc2 {[%emt 0:01:12]} O-O {[%emt 0:00:40]} 6. Be2 {[%emt 0:00:29]} Bxc3 {[%emt 0:08:01]} 7. Qxc3 {[%emt 0:00:17]} Qe7 {[%emt 0:00:05]} 8. O-O {[%emt 0:04:52]} d5 {[%emt 0:01:48]} 9. cxd5 {[%emt 0:00:24]} Nxd5 {[%emt 0:00:08]} 10. Qb3 {[%emt 0:04:24]} Rd8 {[%emt 0:03:01]} 11. d3 {[%emt 0:02:25]} Na5 {[%emt 0:08:31]} 12. Qb5 {[%emt 0:02:48]} Nc6 {[%emt 0:01:11]} 13. Qb3 {[%emt 0:00:25]} Na5 {[%emt 0:00:26]} 14. Qb5 {[%emt 0:00:12]} Nc6 {[%emt 0:00:11]} 15. Bd2 {[%emt 0:01:45]} a6 {[%emt 0:04:09]} 16. Qa4 {[%emt 0:02:16]} Bf5 {[%emt 0:06:40]} 17. e4 {[%emt 0:07:30]} Nf4 {[%emt 0:01:37]} 18. Bxf4 {[%emt 0:00:19]} exf4 {[%emt 0:00:08]} 19. exf5 {[%emt 0:00:17]} Qxe2 {[%emt 0:00:11]} 20. Qxf4 {[%emt 0:00:13]} Qxb2 {[%emt 0:01:21]} 21. Rab1 {[%emt 0:01:03]} Qxa2 {[%emt 0:00:33]} 22. Rxb7 {[%emt 0:00:15]} Qd5 {[%emt 0:04:43]} 23. Rxc7 {[%emt 0:02:28]} Nd4 {[%emt 0:01:09]} 24. Nxd4 {[%emt 0:00:50]} Qxd4 {[%emt 0:00:08]} 25. Qxd4 {[%emt 0:00:23]} Rxd4 {[%emt 0:00:08]} 26. h3 {[%emt 0:00:26]} Rxd3 {[%emt 0:00:18]} 27. Ra1 {[%emt 0:00:15]} h6 {[%emt 0:00:24]} 28. Rc6 {[%emt 0:00:37]} Rd5 {[%emt 0:00:21]} 29. Raxa6 {[%emt 0:00:10]} Rxa6 {[%emt 0:00:07]} 30. Rxa6 {[%emt 0:00:07]} Rxf5 {[%emt 0:00:07]} 31. Ra8+ {[%emt 0:00:09]} Kh7 {[%emt 0:00:06]} 32. Ra6 {[%emt 0:00:03]} Kg8 {[%emt 0:00:07]} 33. Ra8+ {[%emt 0:00:05]} Kh7 {[%emt 0:00:05]} 34. Ra6 {[%emt 0:00:04]} Kg8 {[%emt 0:00:06]} 1/2-1/2

[Event "Spring Chess Classic B 2024"]
[Site "Saint Louis"]
[Date "2024.04.16"]
[Round "5.1"]
[White "Kevlishvili, Robby"]
[Black "Raja Harshit"]
[Result "1/2-1/2"]
[ECO "C67"]
[WhiteElo "2524"]
[BlackElo "2458"]
[Annotator "RC"]
[PlyCount "89"]
[EventDate "2024.04.11"]
[EventCountry "USA"]
[SourceTitle "playchess.com"]
[Source "ChessBase"]
[SourceQuality "1"]
[TimeControl "7200+30"]

1. e4 {[%emt 0:00:03]} e5 {[%emt 0:00:30]} 2. Nf3 {[%emt 0:00:06]} Nc6 {[%emt 0:00:05]} 3. Bb5 {[%emt 0:00:04]} Nf6 {[%emt 0:00:11]} 4. O-O {[%emt 0:00:09]} Nxe4 {[%emt 0:00:07]} 5. Re1 {[%emt 0:00:05]} Nd6 {[%emt 0:00:09]} 6. Nxe5 {[%emt 0:00:05]} Nxe5 {[%emt 0:00:09]} 7. Rxe5+ {[%emt 0:00:06]} Be7 {[%emt 0:00:05]} 8. Bf1 {[%emt 0:00:05]} O-O {[%emt 0:00:08]} 9. d4 {[%emt 0:00:06]} Bf6 {[%emt 0:01:10]} 10. Re1 {[%emt 0:00:16]} Re8 {[%emt 0:00:30]} 11. Bf4 {[%emt 0:00:19]} Rxe1 {[%emt 0:00:22]} 12. Qxe1 {[%emt 0:00:11]} Bxd4 {[%emt 0:00:07]} 13. Bxd6 {[%emt 0:00:33]} cxd6 {[%emt 0:00:05]} 14. Nc3 {[%emt 0:00:08]} Be5 {[%emt 0:00:19]} 15. Rd1 {[%emt 0:01:16]} b6 {[%emt 0:00:09]} 16. Nd5 {[%emt 0:01:16]} Bb7 {[%emt 0:04:27]} 17. c3 {[%emt 0:00:22]} Rc8 {[%emt 0:05:12]} 18. g3 {[%emt 0:00:22]} Bxd5 {[%emt 0:06:08]} 19. Rxd5 {[%emt 0:00:08]} g6 {[%emt 0:01:03]} 20. Bg2 {[%emt 0:05:52]} Rc5 {[%emt 0:05:43]} 21. Rd3 {[%emt 0:00:30]} b5 {[%emt 0:04:41]} 22. Bd5 {[%emt 0:01:01]} Kg7 {[%emt 0:01:27]} 23. Qd1 {[%emt 0:03:47]} a5 {[%emt 0:06:15]} 24. a3 {[%emt 0:04:26]} Rc8 {[%emt 0:14:43]} 25. Kg2 {[%emt 0:12:36]} Qb6 {[%emt 0:04:08]} 26. Qf3 {[%emt 0:16:39]} Rf8 {[%emt 0:03:50]} 27. Qe2 {[%emt 0:02:07]} Qc5 {[%emt 0:05:22]} 28. Bf3 {[%emt 0:01:57]} Qc4 {[%emt 0:06:13]} 29. Bd5 {[%emt 0:05:21]} Qc5 {[%emt 0:00:09]} 30. Bf3 {[%emt 0:16:37]} Qc4 {[%emt 0:00:05]} 31. Qd2 {[%emt 0:00:31]} Rc8 {[%emt 0:04:42]} 32. Bb7 {[%emt 0:02:08]} Rb8 {[%emt 0:02:50]} 33. Bd5 {[%emt 0:01:05]} Qc5 {[%emt 0:00:16]} 34. Rf3 {[%emt 0:01:33]} Rf8 {[%emt 0:00:28]} 35. b4 {[%emt 0:01:42]} Qb6 {[%emt 0:02:03]} 36. Qa2 {[%emt 0:03:33]} f5 {[%emt 0:02:51]} 37. Qe2 {[%emt 0:05:50]} axb4 {[%emt 0:03:04]} 38. axb4 {[%emt 0:00:21]} Qb8 {[%emt 0:02:36]} 39. Rd3 {[%emt 0:05:27]} Rc8 {[%emt 0:02:51]} 40. f4 {[%emt 0:03:07]} Bf6 {[%emt 0:01:47]} 41. Re3 {[%emt 0:00:43]} Kf8 {[%emt 0:05:13]} 42. Qe1 {[%emt 0:16:37]} Qc7 {[%emt 0:04:04]} 43. Qe2 {[%emt 0:00:22]} Qb8 {[%emt 0:00:06]} 44. Qe1 {[%emt 0:00:06]} Qc7 {[%emt 0:00:02]} 45. Qe2 {[%emt 0:05:13]} 1/2-1/2